[Event "Titled Tuesday Blitz October 11 Late 2022"]
[White "Bazeev, German"]
[Black "Zeynalli, Rashad"]
[WhiteFideId "24119350"]
[BlackFideId "13403320"]
[WhiteElo "2493"]
[BlackElo "2125"]
[Result "1-0"]
[Round "10"]
[TimeControl "180+1"]
[Date "2022.10.11"]
[WhiteClock "0:00:05"]
[BlackClock "0:00:02"]

1. d4 {[%clk 0:02:30]}  Nf6 {[%clk 0:02:59]} 2. c4 {[%clk 0:02:30]}  e6 {[%clk 0:02:59]} 3. Nf3 {[%clk 0:02:30]}  d5 {[%clk 0:02:59]} 4. g3 {[%clk 0:02:30]}  Be7 {[%clk 0:02:59]} 5. Bg2 {[%clk 0:02:28]}  O-O {[%clk 0:02:59]} 6. O-O {[%clk 0:02:25]}  dxc4 {[%clk 0:03:00]} 7. Qc2 {[%clk 0:02:25]}  b5 {[%clk 0:03:00]} 8. a4 {[%clk 0:02:25]}  b4 {[%clk 0:03:00]} 9. Nfd2 {[%clk 0:02:24]}  Nd5 {[%clk 0:03:01]} 10. Nxc4 {[%clk 0:02:24]}  c5 {[%clk 0:03:01]} 11. dxc5 {[%clk 0:02:25]}  Ba6 {[%clk 0:03:01]} 12. Ne3 {[%clk 0:02:25]}  Nd7 {[%clk 0:03:01]} 13. c6 {[%clk 0:02:23]}  Rc8 {[%clk 0:02:59]} 14. Nxd5 {[%clk 0:02:12]}  exd5 {[%clk 0:02:58]} 15. Bxd5 {[%clk 0:02:00]}  Ne5 {[%clk 0:02:55]} 16. Qe4 {[%clk 0:01:55]}  Bf6 {[%clk 0:02:28]} 17. Rd1 {[%clk 0:01:10]}  Rxc6 {[%clk 0:02:06]} 18. Bf4 {[%clk 0:01:04]}  Re8 {[%clk 0:01:46]} 19. Nd2 {[%clk 0:00:45]}  Rd6 {[%clk 0:01:31]} 20. Nb3 {[%clk 0:00:25]}  g5 {[%clk 0:01:23]} 21. Nc5 {[%clk 0:00:18]}  Bc8 {[%clk 0:01:07]} 22. Be3 {[%clk 0:00:13]}  Ng4 {[%clk 0:00:48]} 23. Qf3 {[%clk 0:00:13]}  Nxe3 {[%clk 0:00:38]} 24. fxe3 {[%clk 0:00:14]}  Bxb2 {[%clk 0:00:26]} 25. Rab1 {[%clk 0:00:10]}  Qf6 {[%clk 0:00:21]} 26. Rxb2 {[%clk 0:00:07]}  Rxd5 {[%clk 0:00:11]} 27. Qxf6 {[%clk 0:00:06]}  Rxd1+ {[%clk 0:00:11]} 28. Kg2 {[%clk 0:00:05]}  Rxe3 {[%clk 0:00:09]} 29. Qf2 {[%clk 0:00:04]}  Rc3 {[%clk 0:00:08]} 30. Rxb4 {[%clk 0:00:04]}  Rcc1 {[%clk 0:00:07]} 31. e4 {[%clk 0:00:04]}  Bg4 {[%clk 0:00:06]} 32. Rb8+ {[%clk 0:00:04]}  Kg7 {[%clk 0:00:06]} 33. h3 {[%clk 0:00:05]}  Bh5 {[%clk 0:00:03]} 34. Ne6+ {[%clk 0:00:05]}  Kg6 {[%clk 0:00:02]} 35. Qf5+ {[%clk 0:00:04]}  Kh6 {[%clk 0:00:02]} 36. Qxg5# {[%clk 0:00:05]} 1-0


[Site "https://www.chess.com"]

[Event "Titled Tuesday Blitz October 11 Late 2022"]
[White "Bilan, Danila"]
[Black "Alexikov, Alexander"]
[WhiteFideId "24161918"]
[BlackFideId "14103958"]
[WhiteElo "2203"]
[BlackElo "2222"]
[Result "0-1"]
[Round "10"]
[TimeControl "180+1"]
[Date "2022.10.12"]
[WhiteClock "0:00:01"]
[BlackClock "0:00:42"]

1. d4 {[%clk 0:02:53]}  Nf6 {[%clk 0:02:59]} 2. Nf3 {[%clk 0:02:51]}  g6 {[%clk 0:02:59]} 3. Bg5 {[%clk 0:02:51]}  Bg7 {[%clk 0:03:00]} 4. c3 {[%clk 0:02:49]}  d5 {[%clk 0:02:57]} 5. Nbd2 {[%clk 0:02:48]}  h6 {[%clk 0:02:56]} 6. Bh4 {[%clk 0:02:47]}  Bf5 {[%clk 0:02:55]} 7. e3 {[%clk 0:02:44]}  Nbd7 {[%clk 0:02:51]} 8. Be2 {[%clk 0:02:38]}  O-O {[%clk 0:02:50]} 9. O-O {[%clk 0:02:37]}  c6 {[%clk 0:02:48]} 10. c4 {[%clk 0:02:32]}  g5 {[%clk 0:02:46]} 11. Bg3 {[%clk 0:02:32]}  e6 {[%clk 0:02:46]} 12. Ne5 {[%clk 0:02:28]}  Nxe5 {[%clk 0:02:34]} 13. Bxe5 {[%clk 0:02:29]}  Nd7 {[%clk 0:02:33]} 14. Bd6 {[%clk 0:02:19]}  Re8 {[%clk 0:02:32]} 15. f4 {[%clk 0:02:15]}  Nf6 {[%clk 0:02:17]} 16. fxg5 {[%clk 0:01:57]}  hxg5 {[%clk 0:01:59]} 17. Be5 {[%clk 0:01:46]}  Ne4 {[%clk 0:01:50]} 18. Bxg7 {[%clk 0:01:34]}  Kxg7 {[%clk 0:01:49]} 19. Nxe4 {[%clk 0:01:22]}  Bxe4 {[%clk 0:01:48]} 20. Qe1 {[%clk 0:01:19]}  Qd6 {[%clk 0:01:39]} 21. c5 {[%clk 0:01:08]}  Qc7 {[%clk 0:01:38]} 22. b4 {[%clk 0:01:05]}  Rh8 {[%clk 0:01:36]} 23. Qg3 {[%clk 0:00:54]}  Qxg3 {[%clk 0:01:34]} 24. hxg3 {[%clk 0:00:55]}  f5 {[%clk 0:01:28]} 25. a4 {[%clk 0:00:50]}  a6 {[%clk 0:01:21]} 26. b5 {[%clk 0:00:46]}  axb5 {[%clk 0:01:19]} 27. axb5 {[%clk 0:00:46]}  Kf7 {[%clk 0:01:18]} 28. Bf3 {[%clk 0:00:22]}  Bd3 {[%clk 0:01:11]} 29. bxc6 {[%clk 0:00:19]}  Bxf1 {[%clk 0:01:05]} 30. Rxa8 {[%clk 0:00:19]}  Rxa8 {[%clk 0:01:03]} 31. cxb7 {[%clk 0:00:19]}  Rh8 {[%clk 0:00:56]} 32. Kxf1 {[%clk 0:00:09]}  Ke7 {[%clk 0:00:53]} 33. Bd1 {[%clk 0:00:05]}  Kd7 {[%clk 0:00:52]} 34. Ba4+ {[%clk 0:00:04]}  Kc7 {[%clk 0:00:52]} 35. c6 {[%clk 0:00:05]}  Rh1+ {[%clk 0:00:47]} 36. Kf2 {[%clk 0:00:04]}  Ra1 {[%clk 0:00:45]} 37. Bb5 {[%clk 0:00:04]}  Rb1 {[%clk 0:00:44]} 38. Ba4 {[%clk 0:00:01]}  Rb4 {[%clk 0:00:42]} 0-1


[Site "https://www.chess.com"]

[Event "Titled Tuesday Blitz October 11 Late 2022"]
[White "Bjelobrk, Igor"]
[Black "Sowul, Bartosz"]
[WhiteFideId "4300726"]
[BlackFideId "1137590"]
[WhiteElo "2590"]
[BlackElo "2450"]
[Result "1-0"]
[Round "10"]
[TimeControl "180+1"]
[Date "2022.10.12"]
[WhiteClock "0:00:43"]
[BlackClock "0:00:04"]

1. Nf3 {[%clk 0:03:00]}  c5 {[%clk 0:02:59]} 2. e3 {[%clk 0:02:56]}  Nf6 {[%clk 0:02:51]} 3. d4 {[%clk 0:02:53]}  e6 {[%clk 0:02:51]} 4. Bd3 {[%clk 0:02:49]}  b6 {[%clk 0:02:51]} 5. O-O {[%clk 0:02:48]}  Bb7 {[%clk 0:02:51]} 6. c4 {[%clk 0:02:46]}  Be7 {[%clk 0:02:48]} 7. Nc3 {[%clk 0:02:46]}  O-O {[%clk 0:02:47]} 8. d5 {[%clk 0:02:45]}  exd5 {[%clk 0:02:47]} 9. cxd5 {[%clk 0:02:44]}  d6 {[%clk 0:02:47]} 10. e4 {[%clk 0:02:41]}  Nfd7 {[%clk 0:02:45]} 11. Bf4 {[%clk 0:02:39]}  Re8 {[%clk 0:02:37]} 12. Re1 {[%clk 0:02:38]}  Bf8 {[%clk 0:02:32]} 13. Qd2 {[%clk 0:02:29]}  Ba6 {[%clk 0:02:31]} 14. Bc2 {[%clk 0:02:28]}  Ne5 {[%clk 0:02:24]} 15. Nxe5 {[%clk 0:02:27]}  dxe5 {[%clk 0:02:25]} 16. Be3 {[%clk 0:02:27]}  Qd6 {[%clk 0:02:18]} 17. Ba4 {[%clk 0:02:20]}  Rd8 {[%clk 0:02:13]} 18. a3 {[%clk 0:02:15]}  Nd7 {[%clk 0:02:12]} 19. Bc6 {[%clk 0:02:13]}  Rab8 {[%clk 0:02:11]} 20. b4 {[%clk 0:02:12]}  b5 {[%clk 0:02:04]} 21. Bxd7 {[%clk 0:02:03]}  cxb4 {[%clk 0:02:02]} 22. axb4 {[%clk 0:02:03]}  Rxd7 {[%clk 0:01:59]} 23. Bc5 {[%clk 0:01:58]}  Qg6 {[%clk 0:01:59]} 24. d6 {[%clk 0:01:49]}  Bc8 {[%clk 0:01:50]} 25. Rxa7 {[%clk 0:01:40]}  Rxa7 {[%clk 0:01:13]} 26. Bxa7 {[%clk 0:01:39]}  Ra8 {[%clk 0:01:12]} 27. Bc5 {[%clk 0:01:39]}  Bd7 {[%clk 0:01:11]} 28. Nd5 {[%clk 0:01:23]}  Bh3 {[%clk 0:01:04]} 29. f3 {[%clk 0:01:21]}  Be6 {[%clk 0:00:32]} 30. Rd1 {[%clk 0:01:02]}  Bxd5 {[%clk 0:00:18]} 31. Qxd5 {[%clk 0:01:01]}  Rd8 {[%clk 0:00:13]} 32. Qxe5 {[%clk 0:00:55]}  f6 {[%clk 0:00:10]} 33. Qe6+ {[%clk 0:00:55]}  Qf7 {[%clk 0:00:09]} 34. Qxf7+ {[%clk 0:00:52]}  Kxf7 {[%clk 0:00:10]} 35. Kf2 {[%clk 0:00:48]}  Ke6 {[%clk 0:00:09]} 36. Ke3 {[%clk 0:00:45]}  Kd7 {[%clk 0:00:09]} 37. Ra1 {[%clk 0:00:45]}  Bxd6 {[%clk 0:00:03]} 38. Bxd6 {[%clk 0:00:44]}  Kc6 {[%clk 0:00:04]} 39. Bc5 {[%clk 0:00:43]} 1-0


[Site "https://www.chess.com"]

[Event "Titled Tuesday Blitz October 11 Late 2022"]
[White "Carbone, Diego"]
[Black "Rosenberg, Evan S"]
[WhiteFideId "3002179"]
[BlackFideId "2019299"]
[WhiteElo "2243"]
[BlackElo "2346"]
[Result "1-0"]
[Round "10"]
[TimeControl "180+1"]
[Date "2022.10.12"]
[WhiteClock "0:00:13"]
[BlackClock "0:00:07"]

1. d4 {[%clk 0:02:58]}  Nf6 {[%clk 0:02:59]} 2. c4 {[%clk 0:02:57]}  c5 {[%clk 0:02:59]} 3. Nf3 {[%clk 0:02:56]}  cxd4 {[%clk 0:02:59]} 4. Nxd4 {[%clk 0:02:57]}  Nc6 {[%clk 0:03:00]} 5. Nc3 {[%clk 0:02:56]}  e6 {[%clk 0:03:00]} 6. a3 {[%clk 0:02:22]}  d5 {[%clk 0:02:59]} 7. Nxc6 {[%clk 0:02:17]}  bxc6 {[%clk 0:02:51]} 8. e3 {[%clk 0:02:17]}  Be7 {[%clk 0:02:34]} 9. Be2 {[%clk 0:02:17]}  O-O {[%clk 0:02:33]} 10. O-O {[%clk 0:02:17]}  Bb7 {[%clk 0:02:27]} 11. Qc2 {[%clk 0:02:15]}  Rc8 {[%clk 0:02:00]} 12. Rd1 {[%clk 0:02:14]}  h6 {[%clk 0:01:55]} 13. b4 {[%clk 0:02:06]}  Re8 {[%clk 0:01:45]} 14. Bb2 {[%clk 0:02:05]}  Qb6 {[%clk 0:01:39]} 15. Na4 {[%clk 0:01:59]}  Qc7 {[%clk 0:01:20]} 16. Rac1 {[%clk 0:01:55]}  Qb8 {[%clk 0:01:08]} 17. Bf3 {[%clk 0:01:46]}  Nd7 {[%clk 0:00:59]} 18. e4 {[%clk 0:01:41]}  Ne5 {[%clk 0:00:55]} 19. Bxe5 {[%clk 0:01:29]}  Qxe5 {[%clk 0:00:55]} 20. exd5 {[%clk 0:01:29]}  cxd5 {[%clk 0:00:54]} 21. c5 {[%clk 0:01:30]}  Bc6 {[%clk 0:00:46]} 22. Nb2 {[%clk 0:01:25]}  a5 {[%clk 0:00:36]} 23. Nd3 {[%clk 0:01:23]}  Qg5 {[%clk 0:00:32]} 24. Rb1 {[%clk 0:01:22]}  axb4 {[%clk 0:00:33]} 25. axb4 {[%clk 0:01:23]}  e5 {[%clk 0:00:26]} 26. Nb2 {[%clk 0:00:30]}  e4 {[%clk 0:00:24]} 27. Be2 {[%clk 0:00:30]}  Bf6 {[%clk 0:00:23]} 28. b5 {[%clk 0:00:28]}  Bd7 {[%clk 0:00:20]} 29. c6 {[%clk 0:00:26]}  Bh3 {[%clk 0:00:20]} 30. Bf1 {[%clk 0:00:27]}  d4 {[%clk 0:00:19]} 31. Na4 {[%clk 0:00:26]}  d3 {[%clk 0:00:18]} 32. Qd2 {[%clk 0:00:25]}  Qg6 {[%clk 0:00:17]} 33. Nb6 {[%clk 0:00:22]}  Rcd8 {[%clk 0:00:17]} 34. c7 {[%clk 0:00:21]}  Bd4 {[%clk 0:00:14]} 35. cxd8=Q {[%clk 0:00:19]}  Rxd8 {[%clk 0:00:14]} 36. Nc4 {[%clk 0:00:18]}  Re8 {[%clk 0:00:12]} 37. Ne3 {[%clk 0:00:18]}  Be5 {[%clk 0:00:10]} 38. b6 {[%clk 0:00:17]}  Bf4 {[%clk 0:00:11]} 39. b7 {[%clk 0:00:16]}  Rb8 {[%clk 0:00:11]} 40. Rdc1 {[%clk 0:00:15]}  Qh5 {[%clk 0:00:11]} 41. gxh3 {[%clk 0:00:12]}  Qg5+ {[%clk 0:00:07]} 42. Bg2 {[%clk 0:00:13]} 1-0


[Site "https://www.chess.com"]

[Event "Titled Tuesday Blitz October 11 Late 2022"]
[White "Curtis, John"]
[Black "D`Arruda, Ricardo D."]
[WhiteFideId "3200256"]
[BlackFideId "100692"]
[WhiteElo "2203"]
[BlackElo "2438"]
[Result "1-0"]
[Round "10"]
[TimeControl "180+1"]
[Date "2022.10.12"]
[WhiteClock "0:01:15"]
[BlackClock "0:00:32"]

1. e4 {[%clk 0:03:00]}  c5 {[%clk 0:02:54]} 2. Nf3 {[%clk 0:03:00]}  Nc6 {[%clk 0:02:53]} 3. d4 {[%clk 0:03:00]}  cxd4 {[%clk 0:02:53]} 4. Nxd4 {[%clk 0:03:01]}  e5 {[%clk 0:02:54]} 5. Nb5 {[%clk 0:03:01]}  a6 {[%clk 0:02:54]} 6. Nd6+ {[%clk 0:03:01]}  Bxd6 {[%clk 0:02:55]} 7. Qxd6 {[%clk 0:03:01]}  Qe7 {[%clk 0:02:55]} 8. Qxe7+ {[%clk 0:03:01]}  Ngxe7 {[%clk 0:02:56]} 9. Be3 {[%clk 0:03:00]}  d5 {[%clk 0:02:55]} 10. exd5 {[%clk 0:02:59]}  Nxd5 {[%clk 0:02:56]} 11. Bc4 {[%clk 0:02:57]}  Be6 {[%clk 0:02:52]} 12. Bxd5 {[%clk 0:02:52]}  Bxd5 {[%clk 0:02:53]} 13. f3 {[%clk 0:02:52]}  O-O {[%clk 0:02:45]} 14. Nc3 {[%clk 0:02:51]}  Rfd8 {[%clk 0:02:42]} 15. O-O-O {[%clk 0:02:51]}  Be6 {[%clk 0:02:42]} 16. Bb6 {[%clk 0:02:48]}  Rxd1+ {[%clk 0:02:42]} 17. Rxd1 {[%clk 0:02:48]}  Ne7 {[%clk 0:02:19]} 18. Bc5 {[%clk 0:02:44]}  Nc6 {[%clk 0:02:11]} 19. Bb6 {[%clk 0:02:44]}  f5 {[%clk 0:02:10]} 20. a4 {[%clk 0:02:32]}  Kf7 {[%clk 0:02:08]} 21. b3 {[%clk 0:02:27]}  Rc8 {[%clk 0:02:08]} 22. Kb2 {[%clk 0:02:28]}  Nb4 {[%clk 0:02:02]} 23. a5 {[%clk 0:02:21]}  g5 {[%clk 0:01:49]} 24. Rd2 {[%clk 0:02:20]}  f4 {[%clk 0:01:46]} 25. Ne4 {[%clk 0:02:18]}  Rg8 {[%clk 0:01:29]} 26. h3 {[%clk 0:01:53]}  Nd5 {[%clk 0:01:16]} 27. c4 {[%clk 0:01:49]}  Nxb6 {[%clk 0:01:12]} 28. axb6 {[%clk 0:01:49]}  Ke7 {[%clk 0:01:13]} 29. c5 {[%clk 0:01:38]}  Bd7 {[%clk 0:01:06]} 30. Rd6 {[%clk 0:01:30]}  Bc6 {[%clk 0:01:04]} 31. Rh6 {[%clk 0:01:30]}  Rg7 {[%clk 0:00:59]} 32. b4 {[%clk 0:01:23]}  Bb5 {[%clk 0:00:41]} 33. Nd6 {[%clk 0:01:15]}  Bf1 {[%clk 0:00:32]} 34. Nf5+ {[%clk 0:01:15]} 1-0


[Site "https://www.chess.com"]

[Event "Titled Tuesday Blitz October 11 Late 2022"]
[White "Donchenko, Alexander"]
[Black "Tari, Aryan"]
[WhiteFideId "24603295"]
[BlackFideId "1510045"]
[WhiteElo "2572"]
[BlackElo "2612"]
[Result "1-0"]
[Round "10"]
[TimeControl "180+1"]
[Date "2022.10.11"]
[WhiteClock "0:00:50"]
[BlackClock "0:00:01"]

1. Nf3 {[%clk 0:03:00]}  d5 {[%clk 0:02:58]} 2. g3 {[%clk 0:03:01]}  g6 {[%clk 0:02:52]} 3. Bg2 {[%clk 0:03:01]}  Bg7 {[%clk 0:02:53]} 4. d4 {[%clk 0:03:02]}  Nf6 {[%clk 0:02:53]} 5. O-O {[%clk 0:03:03]}  O-O {[%clk 0:02:53]} 6. b3 {[%clk 0:03:03]}  a5 {[%clk 0:02:47]} 7. a4 {[%clk 0:03:01]}  c6 {[%clk 0:02:42]} 8. Ba3 {[%clk 0:02:59]}  Na6 {[%clk 0:02:39]} 9. c4 {[%clk 0:02:57]}  Ne4 {[%clk 0:02:33]} 10. e3 {[%clk 0:02:54]}  Nb4 {[%clk 0:02:29]} 11. cxd5 {[%clk 0:02:52]}  cxd5 {[%clk 0:02:28]} 12. Nfd2 {[%clk 0:02:52]}  Bf5 {[%clk 0:02:23]} 13. Nxe4 {[%clk 0:02:50]}  Bxe4 {[%clk 0:02:22]} 14. Bxe4 {[%clk 0:02:50]}  dxe4 {[%clk 0:02:22]} 15. Nc3 {[%clk 0:02:51]}  f5 {[%clk 0:02:01]} 16. Bxb4 {[%clk 0:02:50]}  axb4 {[%clk 0:02:02]} 17. Nb5 {[%clk 0:02:51]}  Rc8 {[%clk 0:01:56]} 18. Qd2 {[%clk 0:02:49]}  Qd5 {[%clk 0:01:24]} 19. Qxb4 {[%clk 0:02:48]}  f4 {[%clk 0:01:24]} 20. exf4 {[%clk 0:02:44]}  g5 {[%clk 0:01:23]} 21. Rac1 {[%clk 0:02:19]}  Rxc1 {[%clk 0:01:01]} 22. Rxc1 {[%clk 0:02:20]}  gxf4 {[%clk 0:01:01]} 23. Qc4 {[%clk 0:02:18]}  Qxc4 {[%clk 0:00:58]} 24. Rxc4 {[%clk 0:02:16]}  e3 {[%clk 0:00:58]} 25. fxe3 {[%clk 0:01:59]}  fxe3 {[%clk 0:00:58]} 26. Rc2 {[%clk 0:02:00]}  Bh6 {[%clk 0:00:38]} 27. Kg2 {[%clk 0:01:55]}  Kf7 {[%clk 0:00:36]} 28. Rc5 {[%clk 0:01:37]}  Ke6 {[%clk 0:00:31]} 29. Re5+ {[%clk 0:01:36]}  Kd7 {[%clk 0:00:32]} 30. Nc3 {[%clk 0:01:34]}  Rf2+ {[%clk 0:00:31]} 31. Kh3 {[%clk 0:01:34]}  Rd2 {[%clk 0:00:27]} 32. Nd5 {[%clk 0:01:25]}  Rxd4 {[%clk 0:00:27]} 33. Nxe3 {[%clk 0:01:26]}  Kd6 {[%clk 0:00:28]} 34. Nc4+ {[%clk 0:01:26]}  Rxc4 {[%clk 0:00:23]} 35. Rh5 {[%clk 0:01:26]}  Rb4 {[%clk 0:00:15]} 36. Rxh6+ {[%clk 0:01:27]}  e6 {[%clk 0:00:15]} 37. Rxh7 {[%clk 0:01:25]}  Rxb3 {[%clk 0:00:16]} 38. Kh4 {[%clk 0:01:17]}  b6 {[%clk 0:00:09]} 39. g4 {[%clk 0:01:16]}  e5 {[%clk 0:00:07]} 40. g5 {[%clk 0:01:14]}  Rb4+ {[%clk 0:00:08]} 41. Kh5 {[%clk 0:01:14]}  Rxa4 {[%clk 0:00:08]} 42. g6 {[%clk 0:01:14]}  Ke6 {[%clk 0:00:09]} 43. Rb7 {[%clk 0:01:09]}  Kf6 {[%clk 0:00:03]} 44. Rxb6+ {[%clk 0:01:07]}  Kf5 {[%clk 0:00:03]} 45. g7 {[%clk 0:01:05]}  Rg4 {[%clk 0:00:04]} 46. Rb7 {[%clk 0:00:55]}  Rg2 {[%clk 0:00:04]} 47. h4 {[%clk 0:00:53]}  Kf6 {[%clk 0:00:03]} 48. Kh6 {[%clk 0:00:53]}  e4 {[%clk 0:00:03]} 49. Kh7 {[%clk 0:00:51]}  e3 {[%clk 0:00:01]} 50. g8=Q {[%clk 0:00:50]} 1-0


[Site "https://www.chess.com"]

[Event "Titled Tuesday Blitz October 11 Late 2022"]
[White "Erdogdu, Mert"]
[Black "Barria Zuniga, Daniel"]
[WhiteFideId "6301495"]
[BlackFideId "3400816"]
[WhiteElo "2413"]
[BlackElo "2414"]
[Result "0-1"]
[Round "10"]
[TimeControl "180+1"]
[Date "2022.10.11"]
[WhiteClock "0:01:55"]
[BlackClock "0:01:56"]

1. e4 {[%clk 0:03:00]}  c5 {[%clk 0:02:56]} 2. Nf3 {[%clk 0:03:00]}  Nc6 {[%clk 0:02:56]} 3. d4 {[%clk 0:02:57]}  cxd4 {[%clk 0:02:55]} 4. Nxd4 {[%clk 0:02:49]}  Nf6 {[%clk 0:02:56]} 5. Nc3 {[%clk 0:02:49]}  e6 {[%clk 0:02:56]} 6. Ndb5 {[%clk 0:02:49]}  a6 {[%clk 0:02:55]} 7. Nd6+ {[%clk 0:02:49]}  Bxd6 {[%clk 0:02:56]} 8. Qxd6 {[%clk 0:02:49]}  b5 {[%clk 0:02:57]} 9. Bd3 {[%clk 0:02:42]}  Qe7 {[%clk 0:02:50]} 10. Bf4 {[%clk 0:02:41]}  Nh5 {[%clk 0:02:38]} 11. Qxe7+ {[%clk 0:02:37]}  Kxe7 {[%clk 0:02:39]} 12. Be3 {[%clk 0:02:37]}  d6 {[%clk 0:02:37]} 13. O-O-O {[%clk 0:02:32]}  Bb7 {[%clk 0:02:33]} 14. f3 {[%clk 0:02:31]}  Rac8 {[%clk 0:02:27]} 15. Kb1 {[%clk 0:02:21]}  Ne5 {[%clk 0:02:24]} 16. Be2 {[%clk 0:02:19]}  Nc4 {[%clk 0:02:19]} 17. Bc1 {[%clk 0:02:19]}  Nf6 {[%clk 0:02:16]} 18. b3 {[%clk 0:02:10]}  Ne5 {[%clk 0:02:08]} 19. Ba3 {[%clk 0:01:58]}  Rhd8 {[%clk 0:02:04]} 20. Kb2 {[%clk 0:01:56]}  Nc6 {[%clk 0:02:01]} 21. Bxb5 {[%clk 0:01:55]}  axb5 {[%clk 0:02:00]} 22. Nxb5 {[%clk 0:01:55]}  Ne8 {[%clk 0:01:56]} 0-1


[Site "https://www.chess.com"]

[Event "Titled Tuesday Blitz October 11 Late 2022"]
[White "Gubajdullin, Alexei"]
[Black "Girsh, Daniel"]
[WhiteFideId "4141202"]
[BlackFideId "30949190"]
[WhiteElo "2613"]
[BlackElo "2464"]
[Result "1/2-1/2"]
[Round "10"]
[TimeControl "180+1"]
[Date "2022.10.12"]
[WhiteClock "0:00:07"]
[BlackClock "0:00:13"]

1. d4 {[%clk 0:03:00]}  Nf6 {[%clk 0:02:59]} 2. Nf3 {[%clk 0:03:01]}  g6 {[%clk 0:02:59]} 3. Bf4 {[%clk 0:03:01]}  Bg7 {[%clk 0:03:00]} 4. e3 {[%clk 0:03:01]}  O-O {[%clk 0:03:00]} 5. Be2 {[%clk 0:03:01]}  d6 {[%clk 0:02:59]} 6. O-O {[%clk 0:03:02]}  Nbd7 {[%clk 0:03:00]} 7. h3 {[%clk 0:03:02]}  c5 {[%clk 0:03:01]} 8. c3 {[%clk 0:03:01]}  a6 {[%clk 0:03:01]} 9. a4 {[%clk 0:03:01]}  b6 {[%clk 0:03:00]} 10. Qb3 {[%clk 0:03:00]}  Bb7 {[%clk 0:02:59]} 11. Rd1 {[%clk 0:03:00]}  Qc7 {[%clk 0:02:58]} 12. d5 {[%clk 0:03:00]}  Rac8 {[%clk 0:02:51]} 13. c4 {[%clk 0:03:00]}  Rb8 {[%clk 0:02:41]} 14. Nc3 {[%clk 0:02:58]}  Ba8 {[%clk 0:02:41]} 15. e4 {[%clk 0:02:57]}  Nh5 {[%clk 0:02:40]} 16. Bh2 {[%clk 0:02:56]}  Bb7 {[%clk 0:02:37]} 17. Re1 {[%clk 0:02:55]}  Rbe8 {[%clk 0:02:35]} 18. Rad1 {[%clk 0:02:54]}  Bh6 {[%clk 0:02:30]} 19. Bf1 {[%clk 0:02:46]}  Bf4 {[%clk 0:02:27]} 20. g3 {[%clk 0:02:36]}  Be5 {[%clk 0:02:18]} 21. Nxe5 {[%clk 0:02:33]}  dxe5 {[%clk 0:02:18]} 22. Be2 {[%clk 0:02:30]}  Ng7 {[%clk 0:02:12]} 23. Bg4 {[%clk 0:02:17]}  f5 {[%clk 0:02:09]} 24. exf5 {[%clk 0:02:15]}  gxf5 {[%clk 0:02:09]} 25. Be2 {[%clk 0:02:13]}  f4 {[%clk 0:02:04]} 26. Bd3 {[%clk 0:02:09]}  Kh8 {[%clk 0:01:52]} 27. Qc2 {[%clk 0:02:08]}  Nf6 {[%clk 0:01:49]} 28. Ne4 {[%clk 0:01:56]}  Ngh5 {[%clk 0:01:47]} 29. g4 {[%clk 0:01:54]}  Nxe4 {[%clk 0:01:47]} 30. Bxe4 {[%clk 0:01:54]}  Nf6 {[%clk 0:01:47]} 31. g5 {[%clk 0:01:50]}  Nxe4 {[%clk 0:01:20]} 32. Qxe4 {[%clk 0:01:49]}  e6 {[%clk 0:01:14]} 33. Qxe5+ {[%clk 0:01:47]}  Qxe5 {[%clk 0:01:13]} 34. Rxe5 {[%clk 0:01:47]}  exd5 {[%clk 0:01:13]} 35. Rxe8 {[%clk 0:01:44]}  Rxe8 {[%clk 0:01:14]} 36. cxd5 {[%clk 0:01:44]}  Re5 {[%clk 0:01:12]} 37. d6 {[%clk 0:01:36]}  Rxg5+ {[%clk 0:01:12]} 38. Kf1 {[%clk 0:01:36]}  Bg2+ {[%clk 0:01:12]} 39. Ke2 {[%clk 0:01:28]}  Re5+ {[%clk 0:01:11]} 40. Kd2 {[%clk 0:01:28]}  Bf3 {[%clk 0:01:01]} 41. Rg1 {[%clk 0:01:19]}  Rd5+ {[%clk 0:00:29]} 42. Kc3 {[%clk 0:01:18]}  Rd4 {[%clk 0:00:29]} 43. b4 {[%clk 0:01:04]}  Rxd6 {[%clk 0:00:27]} 44. Bxf4 {[%clk 0:01:02]}  cxb4+ {[%clk 0:00:27]} 45. Kc4 {[%clk 0:00:56]}  Be2+ {[%clk 0:00:24]} 46. Kb3 {[%clk 0:00:54]}  Rd3+ {[%clk 0:00:22]} 47. Kb2 {[%clk 0:00:53]}  Rd5 {[%clk 0:00:22]} 48. Bc7 {[%clk 0:00:27]}  Bh5 {[%clk 0:00:14]} 49. f4 {[%clk 0:00:26]}  Bg6 {[%clk 0:00:14]} 50. Bxb6 {[%clk 0:00:20]}  a5 {[%clk 0:00:13]} 51. Kb3 {[%clk 0:00:18]}  Kg7 {[%clk 0:00:14]} 52. Kc4 {[%clk 0:00:18]}  Rf5 {[%clk 0:00:13]} 53. Bd4+ {[%clk 0:00:18]}  Kf7 {[%clk 0:00:13]} 54. Be5 {[%clk 0:00:18]}  Ke6 {[%clk 0:00:13]} 55. Kb5 {[%clk 0:00:17]}  Rh5 {[%clk 0:00:13]} 56. Rg3 {[%clk 0:00:15]}  Bf5 {[%clk 0:00:11]} 57. Kxa5 {[%clk 0:00:14]}  Rxh3 {[%clk 0:00:11]} 58. Rxh3 {[%clk 0:00:12]}  Bxh3 {[%clk 0:00:12]} 59. Kxb4 {[%clk 0:00:12]}  Bf1 {[%clk 0:00:13]} 60. Kc5 {[%clk 0:00:08]}  h5 {[%clk 0:00:13]} 61. Bd4 {[%clk 0:00:07]}  Kf5 {[%clk 0:00:12]} 62. Bf2 {[%clk 0:00:07]}  Kxf4 {[%clk 0:00:12]} 63. a5 {[%clk 0:00:07]}  Kf3 {[%clk 0:00:12]} 64. Be1 {[%clk 0:00:07]}  Kg4 {[%clk 0:00:12]} 65. Kb6 {[%clk 0:00:06]}  h4 {[%clk 0:00:13]} 66. Bxh4 {[%clk 0:00:07]}  Kxh4 {[%clk 0:00:13]} 67. a6 {[%clk 0:00:07]}  Bxa6 {[%clk 0:00:13]} 1/2-1/2


[Site "https://www.chess.com"]